bitfinex/quotes_BTCUSD_20251116
["timestamp","ask_amount","ask_price","bid_price","bid_amount"]
[1763280102802,0.0236,96290.0,96274.0,0.10410215]
[1763280103218,0.0288,96275.0,96274.0,0.10418632]
[1763280109027,0.0288,96275.0,96274.0,8.417e-05]
[1763280113476,0.0288,96275.0,96238.0,0.10410215]
[1763280113701,0.02491,96239.0,96238.0,0.10410215]
[1763280114901,0.02491,96239.0,96238.0,0.10455192]
[1763280115131,0.02491,96239.0,96238.0,0.31237003]
[1763280116011,0.0083,96250.0,96238.0,0.10455192]
[1763280116249,0.0083,96250.0,96242.0,0.20780788]
[1763280116463,0.0083,96250.0,96247.0,0.20779859]
[1763280116908,0.01661,96248.0,96242.0,0.20780894]
[1763280117114,0.01661,96243.0,96239.0,0.20781595]
[1763280117338,0.01661,96240.0,96238.0,0.10455192]
[1763280117564,0.01661,96239.0,96238.0,0.31236979]
[1763280119978,0.0083,96250.0,96239.0,0.04341874]
[1763280120182,0.0083,96250.0,96248.0,0.20779643]
[1763280120384,0.0083,96250.0,96249.0,0.20779436]
[1763280120589,0.0232,96257.0,96256.0,0.20777925]
[1763280120746,0.0232,96257.0,96256.0,0.10410215]
[1763280120952,0.03981,96257.0,96256.0,0.10410215]
[1763280121795,0.01661,96257.0,96256.0,0.3118814]
[1763280121987,0.0083,96261.0,96257.0,0.20777503]
[1763280122189,0.0083,96261.0,96260.0,0.20777062]
[1763280122451,0.0083,96261.0,96234.0,0.02253]
[1763280122452,0.01662,96258.0,96234.0,0.02253]
[1763280122649,0.01662,96257.0,96234.0,0.02253]
[1763280122768,0.01662,96257.0,96221.0,0.31178111]
[1763280122769,0.02463,96256.0,96242.0,0.04341874]
[1763280123169,0.02892,96243.0,96239.0,0.04341874]
[1763280123408,0.0123,96243.0,96242.0,0.04341874]
[1763280123605,0.00914,96250.0,96243.0,0.04341874]
[1763280123918,0.00914,96250.0,96239.0,0.04341874]
[1763280124120,0.0123,96249.0,96241.0,0.04341874]
[1763280124519,0.0123,96249.0,96244.0,0.20780471]
[1763280124824,0.0123,96249.0,96241.0,0.04341874]
[1763280125023,0.0123,96249.0,96242.0,0.04341874]
[1763280125219,0.0123,96249.0,96241.0,0.04341874]
[1763280125520,0.0123,96249.0,96243.0,0.04341874]
[1763280125976,0.01662,96244.0,96238.0,0.10455192]
[1763280126202,0.01662,96243.0,96239.0,0.04341874]
[1763280126546,0.01662,96243.0,96242.0,0.20780948]
[1763280126941,0.01662,96243.0,96239.0,0.04341874]
[1763280127479,0.01662,96243.0,96239.0,0.25123465]
[1763280127806,0.01662,96243.0,96240.0,0.20781377]
[1763280128019,0.01662,96243.0,96242.0,0.20780948]
[1763280128238,0.02463,96248.0,96247.0,0.20779868]
[1763280128454,0.02463,96248.0,96239.0,0.04341874]
[1763280128799,0.02463,96248.0,96247.0,0.20779868]
[1763280129255,0.04125,96248.0,96247.0,0.20779868]
[1763280130790,0.0123,96249.0,96248.0,0.20779652]
[1763280131248,0.00914,96250.0,96249.0,0.20779436]
[1763280131650,0.02463,96256.0,96255.0,0.20778141]
[1763280131886,0.02463,96256.0,96255.0,0.31188356]
[1763280132042,0.01662,96256.0,96255.0,0.31188356]
[1763280132229,0.0123,96266.0,96258.0,0.20777493]
[1763280132434,0.01945323,96265.0,96260.0,0.20777026]
[1763280132676,0.01945323,96265.0,96259.0,0.20777277]
[1763280133078,0.04408323,96265.0,96259.0,0.20777277]
[1763280133228,0.04408323,96265.0,96238.0,0.00044977]
[1763280133229,0.01662,96260.0,96238.0,0.00044977]
[1763280133445,0.02892,96239.0,96238.0,0.00044977]
[1763280142067,0.04838515,96239.0,96238.0,0.00044977]
[1763280153516,0.02892,96239.0,96238.0,0.00044977]
[1763280160371,0.02892,96239.0,96201.0,0.10410215]
[1763280160372,0.04838916,96239.0,96201.0,0.10410215]
[1763280160543,0.00707,96228.0,96222.0,0.10410215]
[1763280160699,0.01946916,96227.0,96222.0,0.10410215]
[1763280160901,0.02697,96223.0,96222.0,0.10410215]
[1763280163420,0.04645382,96223.0,96222.0,0.10410215]
[1763280164355,0.02697,96223.0,96222.0,0.10410215]
[1763280169844,0.02697,96223.0,96201.0,0.10419574]
[1763280170037,0.22950934,96220.0,96216.0,0.10410215]
[1763280170239,0.02444,96222.0,96216.0,0.10410215]
[1763280170481,0.02697,96217.0,96216.0,0.10410215]
[1763280173421,0.02697,96217.0,96201.0,0.10419574]
[1763280173646,0.02697,96202.0,96201.0,0.10419574]
[1763280177279,0.02697,96202.0,96201.0,0.09625697]
[1763280179295,0.02697,96202.0,96201.0,9.359e-05]
[1763280186672,0.01197,96202.0,96201.0,9.359e-05]
[1763280187510,0.0271,96202.0,96201.0,0.20799163]
[1763280187717,0.0271,96202.0,96201.0,0.31209378]
[1763280187948,0.0271,96202.0,96201.0,0.10419574]
[1763280192242,0.0271,96202.0,96201.0,0.31209378]
[1763280194029,0.01197,96202.0,96201.0,0.31209378]
[1763280195013,0.03681,96210.0,96202.0,0.20789588]
[1763280195209,0.01197,96217.0,96206.0,0.20788524]
[1763280195456,0.01197,96217.0,96216.0,0.10410215]
[1763280195719,0.0271,96217.0,96216.0,0.10410215]
[1763280206683,0.01197,96217.0,96216.0,0.10410215]
[1763280207106,0.3465,96225.0,96216.0,0.10410215]
[1763280207305,0.01198,96249.0,96216.0,0.10410215]
[1763280207508,0.0235,96231.0,96217.0,0.00877]
[1763280208009,0.0235,96231.0,96223.0,0.20785031]
[1763280208214,0.0235,96231.0,96224.0,0.20784791]
[1763280208416,0.323,96239.0,96223.0,0.20785026]
[1763280208618,0.03587,96236.0,96235.0,0.10410215]
[1763280209113,0.05119,96236.0,96235.0,0.10410215]
[1763280211689,0.05119,96236.0,96216.0,0.10410215]
[1763280211897,0.02331,96217.0,96216.0,0.10410215]
[1763280220195,0.02331,96217.0,96205.0,0.03122867]
[1763280220405,0.02724,96206.0,96205.0,9.359e-05]
[1763280243469,0.01630409,96213.0,96205.0,9.359e-05]
[1763280246409,0.01630409,96213.0,96205.0,0.20798286]
[1763280246854,0.01630409,96213.0,96206.0,0.20788671]
[1763280247587,0.01630409,96213.0,96206.0,0.20788567]
[1763280247800,0.01630409,96213.0,96205.0,0.20798225]
[1763280248218,0.01630409,96213.0,96206.0,0.20788641]
[1763280248424,0.00748,96217.0,96213.0,0.20787034]
[1763280248640,0.00748,96217.0,96216.0,0.10410215]
[1763280249062,0.02396,96217.0,96216.0,0.10410215]
[1763280251122,0.00748,96217.0,96216.0,0.10410215]
[1763280252407,0.02396,96217.0,96216.0,0.10410215]
[1763280272700,0.02396,96217.0,96205.0,9.359e-05]
[1763280272906,0.02843,96206.0,96205.0,9.359e-05]
[1763280274407,0.05966895,96206.0,96205.0,9.359e-05]
[1763280286646,0.07597556,96206.0,96205.0,9.359e-05]
[1763280288735,0.07597556,96206.0,96178.0,0.10410215]
[1763280288938,0.323,96186.0,96178.0,0.10419576]
[1763280289141,0.02455,96179.0,96178.0,0.10419576]
[1763280291646,0.03471558,96179.0,96178.0,0.10419576]
[1763280301318,0.04022714,96179.0,96178.0,9.361e-05]
[1763280301529,0.03471558,96179.0,96178.0,9.361e-05]
[1763280303245,0.05579894,96179.0,96178.0,9.361e-05]
[1763280303665,0.06642537,96179.0,96178.0,9.361e-05]
[1763280308453,0.03517643,96179.0,96178.0,9.361e-05]
[1763280312863,0.03517643,96179.0,96160.0,0.0004]
[1763280312864,0.05466263,96179.0,96160.0,0.0004]
[1763280313071,0.02805,96161.0,96160.0,0.0004]
[1763280314305,0.02805,96161.0,96140.0,0.0004]
[1763280314532,0.02805,96161.0,96140.0,0.00085022]
[1763280314533,0.02778,96141.0,96140.0,0.00085022]
[1763280317862,0.01122,96141.0,96140.0,0.00085022]
[1763280318077,0.02778,96141.0,96140.0,0.00085022]
[1763280323044,0.0333355,96141.0,96140.0,0.00085022]
[1763280323211,0.02778,96141.0,96140.0,0.00085022]
[1763280323998,0.04721798,96141.0,96140.0,0.00085022]
[1763280324231,0.05760706,96141.0,96140.0,0.00085022]
[1763280326850,0.03816908,96141.0,96140.0,0.00085022]
[1763280327505,0.03816908,96141.0,96140.0,0.20888017]
[1763280327706,0.01146,96145.0,96140.0,0.20888017]
[1763280327907,0.03411,96149.0,96140.0,0.00085022]
[1763280328103,0.01656,96141.0,96140.0,0.00085022]
[1763280328675,0.35711,96149.0,96148.0,0.20801264]
[1763280328676,0.01146,96149.0,96148.0,0.20801264]
[1763280329084,0.33446,96149.0,96148.0,0.20801264]
[1763280330168,0.01122,96152.0,96151.0,0.20800615]
[1763280332243,0.01029642,96158.0,96157.0,0.20799317]
[1763280332440,0.02265,96164.0,96160.0,0.20798668]
[1763280332894,0.03929099,96161.0,96160.0,0.20798668]
[1763280335388,0.02881,96161.0,96160.0,0.20798668]
[1763280337919,0.02881,96161.0,96159.0,0.20798877]
[1763280338127,0.01218,96161.0,96160.0,0.20798668]
[1763280338325,0.01218,96161.0,96159.0,0.20798877]
[1763280338529,0.01663,96160.0,96157.0,0.20799239]
[1763280338729,0.01663,96158.0,96157.0,0.20799239]
[1763280339129,0.01663,96158.0,96150.0,0.10410215]
[1763280339331,0.02807,96151.0,96150.0,0.10410215]
[1763280344751,0.02807,96151.0,96140.0,0.00085022]
[1763280344953,0.01663,96141.0,96140.0,0.00085022]
[1763280361060,0.00838,96144.0,96140.0,0.00085022]
[1763280361443,0.02265,96149.0,96141.0,0.10410215]
[1763280361617,0.34565,96149.0,96141.0,0.10410215]
[1763280361816,0.02659,96142.0,96141.0,0.10410215]
[1763280362577,0.02659,96142.0,96140.0,0.00085022]
[1763280362785,0.02659,96142.0,96120.0,0.0004]
[1763280362786,0.01512,96141.0,96120.0,0.0004]
[1763280362988,0.02349,96121.0,96100.0,0.0004]
[1763280363224,0.02659,96102.0,96100.0,0.0004]
[1763280364501,0.02659,96102.0,96101.0,0.10419578]
[1763280365932,0.34662,96110.0,96109.0,0.20809705]
[1763280366135,0.323,96110.0,96109.0,0.20809705]
[1763280366344,0.01147,96111.0,96109.0,0.20809705]
[1763280367580,0.01512,96110.0,96109.0,0.20809705]
[1763280368134,0.01512,96110.0,96108.0,0.20809904]
[1763280368336,0.02659,96109.0,96108.0,0.20809904]
[1763280370784,0.01147,96109.0,96108.0,0.20809904]
[1763280373309,0.01147,96109.0,96107.0,0.20809903]
[1763280373310,0.02659,96109.0,96107.0,0.20809974]
[1763280373552,0.01512,96108.0,96097.0,0.00926]
[1763280373752,0.01512,96108.0,96104.0,0.20810733]
[1763280373951,0.01512,96108.0,96097.0,0.00926]
[1763280374131,0.01512,96108.0,96106.0,0.20810255]
[1763280374655,0.01649,96107.0,96106.0,0.20810255]
[1763280375345,0.01147,96109.0,96108.0,0.20809922]
[1763280376321,0.01126,96138.0,96117.0,0.0244]
[1763280376517,0.23021829,96130.0,96128.0,0.31215807]
[1763280377096,0.33137,96129.0,96128.0,0.31215807]
[1763280377305,0.34786,96129.0,96128.0,0.31215807]
[1763280379888,0.00837,96129.0,96128.0,0.31215807]
[1763280380096,0.323,96137.0,96135.0,0.20803918]
[1763280380275,0.01126,96129.0,96128.0,0.10410215]
[1763280380510,0.02775,96129.0,96128.0,0.10410215]
[1763280381373,0.02775,96129.0,96128.0,0.10419578]
[1763280387542,0.02775,96129.0,96128.0,0.3122517]
[1763280387690,0.02775,96129.0,96128.0,0.10419578]
[1763280388892,0.02775,96129.0,96128.0,0.3122517]
[1763280389504,0.02775,96129.0,96128.0,0.10419578]
[1763280392071,0.02775,96129.0,96128.0,0.3122517]
[1763280392445,0.02775,96129.0,96128.0,0.10419578]
[1763280392980,0.02775,96129.0,96128.0,0.3122517]
[1763280395379,0.02775,96129.0,96128.0,0.10419578]
[1763280395613,0.02775,96129.0,96128.0,0.3122517]
[1763280399056,0.01126,96129.0,96128.0,0.3122517]
[1763280399249,0.34662,96137.0,96131.0,0.20804909]
[1763280399400,0.02828,96132.0,96129.0,0.20805368]
[1763280399617,0.01202,96132.0,96131.0,0.20804943]
[1763280400014,0.02828,96132.0,96131.0,0.20804943]
[1763280400809,0.01202,96132.0,96131.0,0.20804943]
[1763280401016,0.01126,96138.0,96137.0,0.20803644]
[1763280401457,0.02752,96138.0,96137.0,0.20803644]
[1763280403013,0.02752,96138.0,96135.0,0.20804065]
[1763280403248,0.01626,96137.0,96136.0,0.2080386]
[1763280404968,0.01626,96137.0,96128.0,0.10419578]
[1763280405175,0.03987,96137.0,96128.0,0.10419578]
[1763280405385,0.03987,96137.0,96135.0,0.20804055]
[1763280405551,0.03987,96137.0,96132.0,0.20804537]
[1763280405552,0.02361,96136.0,96132.0,0.20804537]
[1763280405779,0.01626,96133.0,96131.0,0.20804941]
[1763280406187,0.01626,96133.0,96132.0,0.20804726]
[1763280406326,0.01626,96133.0,96128.0,0.31225162]
[1763280406527,0.01626,96132.0,96129.0,0.20805287]
[1763280406729,0.01626,96132.0,96128.0,0.31225162]
[1763280406934,0.01202,96129.0,96128.0,0.10419578]
[1763280407139,0.02828,96129.0,96128.0,0.12500137]
[1763280407341,0.02828,96129.0,96128.0,0.3122517]
[1763280408069,0.02361,96136.0,96135.0,0.20804077]
[1763280408283,0.02361,96136.0,96134.0,0.20804246]
[1763280408464,0.01626,96135.0,96134.0,0.20804246]
[1763280408659,0.01626,96135.0,96134.0,0.20804294]
[1763280409718,0.02167009,96138.0,96134.0,0.20804294]
[1763280409911,0.02167009,96138.0,96137.0,0.20803644]
[1763280410314,0.03793009,96138.0,96136.0,0.20803846]
[1763280410520,0.03793009,96138.0,96135.0,0.20804077]
[1763280410780,0.03793009,96138.0,96136.0,0.20803724]
[1763280410967,0.03793009,96138.0,96128.0,0.10419578]
[1763280411170,0.323,96137.0,96128.0,0.10419578]
[1763280411405,0.323,96137.0,96136.0,0.20803861]
[1763280411759,0.33926,96137.0,96135.0,0.20804027]
[1763280411956,0.33926,96137.0,96136.0,0.20803861]
[1763280412418,0.33926,96137.0,96135.0,0.20804059]
[1763280412741,0.33926,96137.0,96128.0,0.10419578]
[1763280412943,0.01626,96136.0,96135.0,0.20804077]
[1763280414385,0.01626,96136.0,96133.0,0.20804306]
[1763280414586,0.02167009,96138.0,96133.0,0.20804306]
[1763280414587,0.01626,96135.0,96134.0,0.2080411]
[1763280417012,0.02361,96137.0,96136.0,0.20803861]
[1763280417786,0.03987,96137.0,96136.0,0.20803861]
[1763280418329,0.03987,96137.0,96133.0,0.20804306]
[1763280418543,0.01626,96135.0,96134.0,0.20804214]
[1763280420455,0.01626,96135.0,96128.0,0.10419578]
[1763280420762,0.02828,96129.0,96128.0,0.10419578]
[1763280422221,0.02828,96129.0,96128.0,9.363e-05]
[1763280466737,0.05311791,96129.0,96128.0,9.363e-05]
[1763280466934,0.08587383,96129.0,96128.0,3.63e-06]
[1763280467132,0.08587383,96129.0,96100.0,0.0004]
[1763280467367,0.323,96109.0,96108.0,0.09362468]
[1763280467800,0.33809,96109.0,96100.0,0.00045154]
[1763280468007,0.03523,96108.0,96105.0,0.09362468]
[1763280468211,0.01509,96106.0,96105.0,0.09362468]
[1763280469026,0.01509,96106.0,96100.0,0.00045154]
[1763280469175,0.03523,96108.0,96102.0,0.09362468]
[1763280469547,0.02637,96103.0,96102.0,0.09362468]
[1763280471833,0.02637,96103.0,96100.0,0.00045154]
[1763280472066,0.01509,96101.0,96100.0,0.00045154]
[1763280494370,0.03141469,96101.0,96100.0,0.00045154]
[1763280494586,0.01509,96101.0,96100.0,0.00045154]
[1763280497590,0.0314152,96101.0,96100.0,0.00045154]
[1763280500396,0.05094381,96101.0,96100.0,0.00045154]
[1763280503971,0.05094381,96101.0,96100.0,0.00145154]
[1763280504193,0.09298919,96101.0,96100.0,0.00145154]
[1763280504875,0.09715954,96101.0,96100.0,0.00145154]
[1763280507439,0.05511416,96101.0,96100.0,0.00145154]
[1763280507643,0.03878896,96101.0,96100.0,0.00145154]
[1763280521578,0.05511515,96101.0,96100.0,0.00145154]
[1763280522456,0.06488361,96101.0,96100.0,0.00145154]
[1763280529100,0.06489588,96101.0,96100.0,0.00145154]
[1763280529306,0.43358591,96101.0,96100.0,0.00145154]
[1763280529537,0.45608033,96101.0,96100.0,0.00145154]
[1763280529687,0.4103903,96101.0,96100.0,0.00145154]
[1763280531147,0.4103903,96101.0,96090.0,0.0004]
[1763280531148,0.323,96100.0,96090.0,0.0004]
[1763280531357,0.02804,96091.0,96090.0,0.0004]
[1763280531564,0.04758088,96091.0,96090.0,0.0004]
[1763280531718,0.06696497,96091.0,96090.0,0.0004]
[1763280532149,0.43235591,96091.0,96090.0,0.0004]
[1763280533031,0.43235591,96091.0,96090.0,0.0014]
[1763280533235,0.42258365,96091.0,96090.0,0.0014]
[1763280534456,0.42258365,96091.0,96090.0,0.0004]
[1763280537263,0.38019271,96091.0,96090.0,0.0004]
[1763280538552,0.04758088,96091.0,96090.0,0.0004]
[1763280538754,0.02804,96091.0,96090.0,0.0004]
[1763280539993,0.02804,96091.0,96090.0,0.0014]
[1763280540177,0.0475684,96091.0,96090.0,0.0014]
[1763280540381,0.05626395,96091.0,96090.0,0.0014]
[1763280540778,0.0475684,96091.0,96090.0,0.0014]
[1763280541022,0.05173907,96091.0,96090.0,0.0014]
[1763280541408,0.05173907,96091.0,96090.0,0.0004]
[1763280543789,0.06150178,96091.0,96090.0,0.0004]
[1763280551128,0.06150178,96091.0,96080.0,0.0004]
[1763280551129,0.01569,96078.0,96070.0,0.0004]
[1763280551336,0.02697,96071.0,96070.0,0.0004]
[1763280551671,0.0311418,96071.0,96070.0,0.0004]
[1763280552506,0.03119772,96071.0,96070.0,0.0004]
[1763280553828,0.03119772,96071.0,96070.0,0.0014]
[1763280554565,0.03769275,96071.0,96070.0,0.0014]
[1763280554740,0.03119772,96071.0,96070.0,0.0014]
[1763280555736,0.04752933,96071.0,96070.0,0.0014]
[1763280557513,0.03119772,96071.0,96070.0,0.0014]
[1763280557745,0.02702592,96071.0,96070.0,0.0014]
[1763280561829,0.04335663,96071.0,96070.0,0.0014]
[1763280562035,5.592e-05,96071.0,96070.0,0.20958153]
[1763280562616,0.01614592,96071.0,96070.0,0.0014]
[1763280563017,5.592e-05,96071.0,96070.0,0.20958153]
[1763280563194,5.592e-05,96071.0,96070.0,0.20858153]
[1763280563393,5.592e-05,96071.0,96070.0,0.20958153]
[1763280564142,5.592e-05,96071.0,96070.0,0.21158153]
[1763280564295,5.592e-05,96071.0,96070.0,0.21058153]
[1763280564495,5.592e-05,96071.0,96070.0,0.0034]
[1763280566657,5.592e-05,96071.0,96070.0,0.21158153]
[1763280569345,5.592e-05,96071.0,96070.0,0.20858153]
[1763280569544,5.592e-05,96071.0,96070.0,0.24185679]
[1763280569807,5.592e-05,96071.0,96070.0,0.24285679]
[1763280569945,5.592e-05,96071.0,96070.0,0.24085679]
[1763280570149,5.592e-05,96071.0,96070.0,0.24185679]
[1763280570863,5.592e-05,96071.0,96070.0,0.24485679]
[1763280571066,5.592e-05,96071.0,96070.0,0.24285679]
[1763280571252,5.592e-05,96071.0,96070.0,0.24485679]
[1763280571459,5.592e-05,96071.0,96070.0,0.28827553]
[1763280572356,5.592e-05,96071.0,96070.0,0.28527553]
[1763280572630,5.592e-05,96071.0,96070.0,0.28627553]
[1763280573081,5.592e-05,96071.0,96070.0,0.28827553]
[1763280599467,0.323,96119.0,96090.0,0.04341874]
[1763280599667,0.323,96099.0,96091.0,0.10142234]
[1763280599897,0.323,96099.0,96098.0,0.20812087]
[1763280600636,0.323,96099.0,96098.0,0.03126529]
[1763280600860,0.01562,96099.0,96098.0,0.03126529]
[1763280601443,0.01562,96099.0,96098.0,0.001]
[1763280601866,0.01562,96099.0,96098.0,0.002]
[1763280602271,0.01562,96099.0,96091.0,0.02311]
[1763280603119,0.01562,96099.0,96094.0,0.20812946]
[1763280603336,0.323,96103.0,96100.0,0.20811616]
[1763280603546,0.323,96103.0,96099.0,0.20811871]
[1763280603755,0.323,96103.0,96102.0,0.20811221]
[1763280603957,0.323,96103.0,96101.0,0.20811397]
[1763280604362,0.323,96103.0,96102.0,0.20811221]
[1763280604571,0.35939,96109.0,96097.0,0.21423871]
[1763280604793,0.33518,96109.0,96108.0,0.09362468]
[1763280605215,0.3512,96109.0,96108.0,0.09362468]
[1763280605979,0.0282,96109.0,96108.0,0.09362468]
[1763280607394,0.0282,96109.0,96108.0,0.09462468]
[1763280607633,0.0282,96109.0,96108.0,0.09362468]
[1763280607986,0.0282,96109.0,96108.0,0.09462468]
[1763280620725,0.01218,96109.0,96108.0,0.09462468]
[1763280620941,0.34721,96117.0,96108.0,0.09462468]
[1763280621194,0.02825,96109.0,96108.0,0.09462468]
[1763280622278,0.02825,96109.0,96108.0,0.09362468]
[1763280623335,0.02825,96109.0,96108.0,0.09462468]
[1763280625583,0.02421,96117.0,96108.0,0.09462468]
[1763280626390,0.02421,96117.0,96108.0,0.09362468]
[1763280626583,0.01187,96109.0,96108.0,0.09362468]
[1763280628261,0.323,96119.0,96109.0,0.00612]
[1763280628630,0.323,96119.0,96109.0,0.02933]
[1763280629372,0.33487,96119.0,96109.0,0.00612]
[1763280629509,0.35977,96119.0,96109.0,0.00612]
[1763280630292,0.323,96118.0,96109.0,0.00612]
[1763280633939,0.323,96118.0,96109.0,0.0269297]
[1763280635720,0.16117424,96119.0,96117.0,0.02222]
[1763280635947,0.01037105,96120.0,96118.0,0.01614]
[1763280636441,0.323,96126.0,96118.0,0.01614]
[1763280636681,0.32313512,96126.0,96125.0,0.09362468]
[1763280637674,0.00013512,96126.0,96125.0,0.09362468]
[1763280642731,0.00013512,96126.0,96125.0,0.09462468]
[1763280644877,0.00013512,96126.0,96125.0,0.11851468]
[1763280648319,0.00013512,96126.0,96125.0,0.09462468]
[1763280650429,0.00013512,96126.0,96125.0,0.11543092]
[1763280661493,0.00013512,96126.0,96125.0,0.09462468]
[1763280662509,0.00013512,96126.0,96125.0,0.11543092]
[1763280663435,0.00013512,96126.0,96125.0,0.32349333]
[1763280663648,0.00013512,96126.0,96125.0,0.30268709]
[1763280664608,0.00013512,96126.0,96125.0,0.09462468]
[1763280664748,0.00013512,96126.0,96125.0,0.09362468]
[1763280665252,0.00013512,96126.0,96125.0,0.11543092]
[1763280665449,0.00013512,96126.0,96125.0,0.11643092]
[1763280667449,0.00013512,96126.0,96125.0,0.09562468]
[1763280667651,0.01624512,96126.0,96125.0,0.09562468]
[1763280667872,0.00013512,96126.0,96125.0,0.09562468]
[1763280669779,0.00013512,96126.0,96125.0,0.11643092]
[1763280669971,0.00013512,96126.0,96125.0,0.09562468]
[1763280672632,0.01624512,96126.0,96125.0,0.09562468]
[1763280673654,0.00013512,96126.0,96125.0,0.09562468]
[1763280679383,0.01603512,96126.0,96125.0,0.002]
[1763280679977,0.01603512,96126.0,96125.0,0.001]
[1763280680461,0.01603512,96126.0,96125.0,0.002]
[1763280680671,0.01603512,96126.0,96125.0,0.001]
[1763280681297,0.01603512,96126.0,96125.0,0.002]
[1763280681843,0.01603512,96126.0,96125.0,0.001]
[1763280684331,0.01603512,96126.0,96092.0,0.01603512]
[1763280684332,0.01603512,96126.0,96079.0,0.02359]
[1763280684534,0.00682,96093.0,96079.0,0.02359]
[1763280684686,0.00682,96093.0,96083.0,0.02651916]
[1763280684896,0.00682,96093.0,96069.0,0.20818351]
[1763280685093,0.00682,96093.0,96083.0,0.02359]
[1763280685439,0.323,96098.0,96083.0,0.02359]
[1763280687125,0.323,96098.0,96089.0,0.09462468]
[1763280687311,0.34575,96098.0,96089.0,0.09562468]
[1763280687933,0.34575,96098.0,96089.0,0.09462468]
[1763280688156,0.34575,96098.0,96089.0,0.09562468]
[1763280688974,0.02275,96097.0,96089.0,0.09562468]
[1763280689316,0.02822,96090.0,96089.0,0.09562468]
[1763280689882,0.02822,96090.0,96089.0,0.001]
[1763280690553,0.02822,96090.0,96070.0,0.0004]
[1763280690763,0.01232,96090.0,96089.0,0.09462468]
[1763280690976,0.01232,96090.0,96089.0,0.09562468]
[1763280691178,0.02822,96090.0,96074.0,0.09372778]
[1763280691409,0.02822,96075.0,96074.0,0.09372778]
[1763280692370,0.02822,96075.0,96074.0,0.09472778]
[1763280693311,0.02822,96075.0,96074.0,0.09572778]
[1763280693746,0.02822,96075.0,96074.0,0.09472778]
[1763280693967,0.02822,96075.0,96074.0,0.09572778]
[1763280705626,0.02822,96075.0,96074.0,0.09472778]
[1763280706381,0.02822,96075.0,96074.0,0.09572778]
[1763280706611,0.02822,96075.0,96074.0,0.09472778]
[1763280706995,0.02822,96075.0,96074.0,0.09572778]
[1763280712634,0.02822,96075.0,96074.0,0.0021031]
[1763280712858,0.04769368,96075.0,96074.0,0.0021031]
[1763280713219,0.04769371,96075.0,96074.0,0.0021031]
[1763280715314,0.03179371,96075.0,96074.0,0.0021031]
[1763280715555,0.01947371,96075.0,96074.0,0.0021031]
[1763280715977,0.01947371,96081.0,96074.0,0.0021031]
[1763280716186,0.01214,96082.0,96080.0,0.09362468]
[1763280716363,0.01950232,96081.0,96080.0,0.09362468]
[1763280716518,0.03476232,96081.0,96080.0,0.09362468]
[1763280717910,0.01950232,96081.0,96080.0,0.09362468]
[1763280718547,0.3627033,96090.0,96080.0,0.09362468]
[1763280718750,0.34251799,96089.0,96080.0,0.09462468]
[1763280718941,0.01951799,96088.0,96080.0,0.09462468]
[1763280719091,0.01951799,96087.0,96081.0,0.02359]
[1763280719292,0.323,96089.0,96081.0,0.02359]
[1763280719500,0.01952007,96088.0,96081.0,0.02359]
[1763280719701,0.01952007,96087.0,96081.0,0.02359]
[1763280719929,0.323,96089.0,96081.0,0.02359]
[1763280720136,0.01952007,96088.0,96081.0,0.02359]
[1763280720337,0.01214,96096.0,96081.0,0.02359]
[1763280720338,0.01214,96108.0,96094.0,0.02482]
[1763280720542,0.323,96103.0,96095.0,0.0164]
[1763280720748,0.323,96103.0,96102.0,0.09362468]
[1763280720950,0.34251883,96103.0,96102.0,0.09362468]
[1763280721751,0.01951883,96103.0,96102.0,0.09362468]
[1763280722150,0.01951883,96103.0,96102.0,0.09462468]
[1763280722382,0.01214,96108.0,96102.0,0.09462468]
[1763280722582,0.01214,96108.0,96102.0,0.09562468]
[1763280722583,0.01949712,96107.0,96102.0,0.09562468]
[1763280723044,0.0347,96118.0,96102.0,0.09562468]
[1763280723211,0.323,96111.0,96104.0,0.00995]
[1763280723559,0.1209011,96120.0,96113.0,0.01526]
[1763280723828,0.3627033,96123.0,96119.0,0.09362468]
[1763280724000,0.01214,96124.0,96119.0,0.09362468]
[1763280727330,0.5648022,96129.0,96119.0,0.09362468]
[1763280727569,0.56493732,96129.0,96119.0,0.11633468]
[1763280727945,0.56493732,96129.0,96119.0,0.09362468]
[1763280730701,0.44403622,96129.0,96128.0,0.00842]
[1763280730904,0.00013512,96129.0,96128.0,0.00842]
[1763280734516,0.00013512,96129.0,96128.0,0.21647592]
[1763280734717,0.00013512,96129.0,96128.0,0.00842]
[1763280735311,0.00013512,96129.0,96128.0,0.21647592]
[1763280735513,0.00013512,96129.0,96128.0,0.21847592]
[1763280735919,0.00013512,96129.0,96128.0,0.01042]
[1763280736582,0.00013512,96129.0,96128.0,0.21847592]
[1763280737180,0.00013512,96129.0,96128.0,0.01042]
[1763280737838,0.00013512,96129.0,96128.0,0.21847592]
[1763280738615,0.00013512,96129.0,96128.0,0.01042]
[1763280739372,0.1209011,96138.0,96136.0,0.09362468]
[1763280739631,0.00045014,96138.0,96137.0,0.01613]
[1763280740284,0.02459,96177.0,96140.0,0.01040149]
[1763280740513,0.1209011,96160.0,96155.0,0.09362468]
[1763280740763,0.1209011,96170.0,96155.0,0.30162037]
[1763280740764,0.2418022,96165.0,96155.0,0.30162037]
[1763280740978,0.2418022,96165.0,96164.0,0.01613]
[1763280740979,0.16094648,96165.0,96164.0,0.01613]
[1763280741186,0.00013499,96173.0,96164.0,0.02837]
[1763280741402,0.00013499,96173.0,96172.0,0.12199468]
[1763280742276,0.00013499,96173.0,96172.0,0.10586468]
[1763280743797,0.00013499,96173.0,96172.0,0.10686468]
[1763280744245,0.00013499,96173.0,96172.0,0.10786468]
[1763280745413,0.0002,96200.0,96173.0,0.04341874]
[1763280745672,0.16114648,96200.0,96199.0,0.12199468]
[1763280745793,0.0002,96200.0,96199.0,0.12199468]
[1763280748890,0.0002,96200.0,96199.0,0.10586468]
[1763280749108,0.01954496,96200.0,96199.0,0.09362468]
[1763280749327,0.04669496,96200.0,96199.0,0.09362468]
[1763280750779,0.04669496,96200.0,96173.0,0.03123836]
[1763280751024,0.36693496,96199.0,96197.0,0.09362468]
[1763280751202,0.01934496,96198.0,96197.0,0.09362468]
[1763280751404,0.03495496,96198.0,96197.0,0.09362468]
[1763280752009,0.03495496,96198.0,96172.0,0.10586468]
[1763280752212,0.04196496,96197.0,96190.0,0.09362468]
[1763280752416,0.01934496,96196.0,96190.0,0.09362468]
[1763280752732,0.02723,96191.0,96190.0,0.09362468]
[1763280752869,0.04657496,96191.0,96190.0,0.09362468]
[1763280753076,0.04657496,96191.0,96172.0,0.10586468]